{"text_format":"1","workbook":"xlsx","n_sheets":3,"sheets":["List1","List2","List3"],"not_rendered":{"charts":0,"images":0,"macros":0,"external_links":1,"defined_names":0,"comments":0,"pivot_tables":0},"unopened":[],"bounds":{"document_bytes":16777216,"sheet_cells":100000,"rows_first":2000,"rows_last":500,"rows_between":2000,"halvings":0,"cell_chars":16384,"cell_head_chars":4096},"cells_cut":0,"cells_raw":0,"read":"whole","date_system":"1900"}

{"sheet":"List1","index":0,"n_rows":86,"n_cols":10,"rows_kept":86,"cut":false,"hidden":false,"merged":[[20,3,20,4]]}
[]
[]
["Obec , IČ: Náklo, 00299251"]
[]
["Rozpočtové opatření č. 10  - 5. září 2022 "]
[]
["V souladu s ustanovením § 16 zákona č. 250/2000 Sb., o rozpočtových pravidlech územních rozpočtů dojde k rozpočtovému"]
["opatření v případě změn rozpočtových prostředků na závazných ukazatelích."]
[]
["Rozpočtové opatření č. 10/2022 (předloženo na ZO 5. 9. 2022) a doplněno při jednání na ZO"]
[]
["PŘÍJMY"]
["PAR","POL","UZ","PARAGRAF","POLOŽKA","Rozpočet na rok 2022","Rozpočet po změnách","změna ROZP","ROZP po ZMĚNĚ","POZNÁMKA"]
[0,1112,null,null,"Daň z příjmů fyzických osob placená poplatníky",161000,161000,39641.839999999997,{"$f":"H14+G14","v":200641.84}]
[0,1342,null,null,"Příjem z poplatku z pobytu",10000,23845,70340,{"$f":"H15+G15","v":94185},"poplatel u pobytu"]
[0,1345,null,null,"příjem z poplatku za obecní systém odpadového hospodářství",480000,600000,30000,630000,"komunální odpad"]
[0,1381,null,null,"Daň z hazardních her",100000,109055.82,48931.14,157986.96000000002]
[0,2420,null,null,"Spl.půjč.prostř.od obecně prosp.spol.a podob.subje",844745.7,844745.7,959879,1804624.7,"návratné finanční výpomoci - DSO, ZŠ Náklo, Housátko, SDH Lhota"]
[0,4111,null,null,"Neinvestiční přijaté transf.z všeob.pokl.správy SR",0,92291.69,99469.33,191761.02000000002,"volby, jednorázový nenávratný neúčelový příspěvek"]
[null,4116,null,null,"Ostatní neinv.přijaté transfery ze st. rozpočtu",0,1088295.69,{"$f":"26133","v":26133},1114428.69,"dotace ÚP"]
[null,null,null,"bez ODPA",null,30550319.699999999,32045356.73,{"$f":"SUM(H13:H20)","v":1274394.31},33319751.039999999]
[2219,2322,null,null,"Přijaté pojistné náhrady",0,0,863940,{"$f":"H22+G22","v":863940},"pojistná událost"]
[2219,null,null,"Ostatní záležitosti pozemních komunikací",null,0,0,{"$f":"H22","v":863940},{"$f":"H23+G23","v":863940}]
[2321,2111,null,null,"Příjmy z poskytování služeb a výrobků",1200000,1200000,33799,1233799,"stočné"]
[2321,null,null,"Odvádění a čištění odpadních vod a nakl.s kaly",null,1200000,1200000,{"$f":"H24","v":33799},1233799]
[3639,2119,null,null,"Ostatní příjmy z vlastní činnosti",0,0,1210,1210,"náhrada za zřízení věcného břemene"]
[3639,null,null,"Komunální služby a územní rozvoj j.n.",null,125000,129600,{"$f":"H26","v":1210},130810]
[3722,2111,null,null,"Příjmy z poskytování služeb a výrobků",58000,58000,15476,73476,"komunální odpad podnikatelé"]
[3722,null,null,"Sběr a svoz komunálních odpadů",null,58000,58000,{"$f":"H28","v":15476},73476]
[6171,2324,null,null,"Přijaté nekapitálové příspěvky a náhrady",75000,523374,-26133,497241,"dotace ÚP"]
[6171,null,null,"Činnost místní správy",null,76000,624374,{"$f":"H30","v":-26133},598241]
[null,null,null,"Celkem ZMĚNY v PŘÍJMECH",null,null,null,{"$f":"H31+H29+H27+H25+H23+H21","v":2162686.31}]
[]
[null,null,null,"Celkem PŘÍJMY",null,null,35858640.730000004,2162686.31,38021327.039999999]
[]
["VÝDAJE:"]
["PAR","POL","UZ","PARAGRAF","POLOŽKA","Rozpočet na rok 2022","Rozpočet po změnách","změna ROZP","ROZP po ZMĚNĚ","POZNÁMKA"]
[3612,6121,null,null,"Budovy, haly a stavby",0,1542882.4,1389688.44,{"$f":"H38+G38","v":2932570.84},"L39"]
[3612,null,null,"Bytové hospodářství",null,210000,1840882.4,{"$f":"H38","v":1389688.44},3230570.84]
[5512,5222,null,null,"Neinvestiční transfery spolkům",0,0,100000,100000,"neinvestiční dotace SDH Mezice - oslavy výročí"]
[5512,null,null,"Požární ochrana - dobrovolná část",null,147000,575907.34,{"$f":"H40","v":100000},675907.34]
[6115,5021,null,null,"Ostatní osobní výdaje",0,null,40000,40000,"volby"]
[6115,5019,null,null,"Ostatní platy",0,null,3000,3000,"volby"]
[6115,5031,null,null,"Povinné poj.na soc.zab.a přísp.na st.pol.zaměstnan",0,null,2000,2000,"volby"]
[6115,5032,null,null,"Povinné poj.na veřejné zdravotní pojištění",0,null,2000,2000,"volby"]
[6115,5039,null,null,"Ostatní povinné pojistné placené zaměstnavatelem",0,null,2000,2000,"volby"]
[6115,5164,null,null,"Nájemné",0,null,3000,3000,"volby"]
[6115,5169,null,null,"Nákup ostatních služeb",0,null,30000,30000,"volby"]
[6115,5173,null,null,"Cestovné (tuzemské i zahraniční)",0,null,2000,2000,"volby"]
[6115,5175,null,null,"Pohoštění",0,null,1000,1000,"volby"]
[6115,5139,null,null,"Nákup materiálu j.n.",0,2204,8796,11000,"volby"]
[6115,null,null,"Volby do zastupitelstev územních samosprávných cel",null,0,{"$f":"SUM(G42:G51)","v":2204},{"$f":"H51+H50+H49+H48+H47+H46+H45+H44+H43+H42","v":93796},96000]
[6171,5169,null,null,"Nákup ostatních služeb",1500000,1420798.13,79201.87,1500000]
[6171,5171,null,null,"Opravy a udržování",null,1500000,500000,2000000,"oprava střechy"]
[6171,null,null,"Činnost místní správy",null,null,9236578.1300000008,{"$f":"H54+H53","v":579201.87},9815780]
[null,null,null,"Celkem ZMĚNY ve VÝDAJÍCH",null,null,null,{"$f":"H55+H52+H41+H39","v":2162686.31}]
[]
[null,null,null,"Celkem VÝDAJE",null,null,39567550.200000003,2162686.31,41730236.509999998]
[]
[null,null,null,"Celkem 5XXX",null,null,26880442.949999999,2162686.31,29043129.260000002]
[null,null,null,"Celkem 6XXX",null,null,12687107.249999998,0,12687107.249999998]
[]
[]
["FINANCOVÁNÍ"]
["PAR","POL","UZ","PARAGRAF","POLOŽKA",null,"Upravený ROZP","změna ROZP","ROZP po ZMĚNĚ","POZNÁMKA"]
[null,null,null,"Celkem ZMĚNY ve FINANCOVÁNÍ:",null,null,null,0]
[]
[]
[null,null,null,"REKAPITULACE:"]
[]
[null,null,null,"Celkem PŘÍJMY",null,null,35858640.730000004,2162686.31,38021327.039999999]
[null,null,null,"Celkem FINANCOVÁNÍ:",null,null,3708909.4700000063,0,3708909.4700000063]
[null,null,null,"Celkem PŘÍJMY+FINANCOVÁNÍ",null,null,39567550.20000001,2162686.31,41730236.510000005]
[]
[null,null,null,"Celkem VÝDAJE",null,null,39567550.200000003,2162686.31,41730236.509999998]
[]
[]
["Důvodová zpráva k rozpočtovému opatření č. 10 /2022"]
[]
["Přesun prostředků v rámci nezajištěného výdaje je Čerpán z rezervy obce."]
[]
["Správce rozpočtu : "]
[]
["Starosta obce : "]
[]
["ZO schvaluje dne 5. 9. 2022 rozpočtové opatření č. 10/2022 v předloženém rozsahu."]

{"sheet":"List2","index":1,"n_rows":24,"n_cols":1,"rows_kept":24,"cut":false,"hidden":false,"merged":[]}
["TEXTY PRO FORMULÁŘ ÚPRAVA ROZPOČTU - na začátek kopírují se řádky 3-13"]
["poznámka: Texty, které budou přenášeny z tohoto formuláře, musí být zapsány pouze ve sloupci A"]
[]
[]
["Obec , IČ: Náklo, 00299251"]
[]
["Rozpočtové změny roku 2019 -duben"]
[]
["V souladu s ustanovením § 16 zákona č. 250/2000 Sb., o rozpočtových pravidlech územních rozpočtů dojde k rozpočtovému"]
["opatření v případě změn rozpočtových prostředků na závazných ukazatelích."]
[]
["Rozpočtové opatření č. 1/2019 (předloženo na ZQ 6. 6. 2018) a doplněno při jednání na ZO"]
[]
["TEXTY PRO FORMULÁŘ ÚPRAVA ROZPOČTU - na začátek kopírují se řádky 16-32"]
[]
["Důvodová zpráva k rozpočtovému opatření č. 1/2019"]
[]
["Přesun prostředků v rámci nezajištěného výdaje je Čerpán z rezervy obce."]
[]
["Správce rozpočtu : "]
[]
["Starosta obce : "]
[]
["ZO schvaluje dne 6. 6. 2018 rozpočtové opatření č. 3/2018 v předloženém rozsahu Usnesením č. 1038/1860"]

{"sheet":"List3","index":2,"n_rows":0,"n_cols":0,"rows_kept":0,"cut":false,"hidden":false,"merged":[]}